[Event "Titled Tuesday Blitz November 16 2021"]
[White "Tsvetkov, Andrey"]
[Black "Punin, Andrii"]
[WhiteFideId "34139360"]
[BlackFideId "14112639"]
[WhiteElo "2280"]
[BlackElo "2357"]
[Result "1/2-1/2"]
[Round "11"]
[TimeControl "180+1"]
[Date "2021.11.16"]
[WhiteClock "0:00:04"]
[BlackClock "0:00:09"]

1. d4 {[%clk 0:03:00]}  Nf6 {[%clk 0:02:56]} 2. c4 {[%clk 0:03:01]}  e6 {[%clk 0:02:56]} 3. Nc3 {[%clk 0:03:00]}  d5 {[%clk 0:02:55]} 4. cxd5 {[%clk 0:03:00]}  exd5 {[%clk 0:02:55]} 5. Bg5 {[%clk 0:03:00]}  c6 {[%clk 0:02:53]} 6. e3 {[%clk 0:03:01]}  Bf5 {[%clk 0:02:51]} 7. Qf3 {[%clk 0:03:01]}  Bg6 {[%clk 0:02:51]} 8. Bxf6 {[%clk 0:03:01]}  Qxf6 {[%clk 0:02:52]} 9. Qxf6 {[%clk 0:03:02]}  gxf6 {[%clk 0:02:53]} 10. Nf3 {[%clk 0:03:02]}  Nd7 {[%clk 0:02:52]} 11. Nh4 {[%clk 0:03:03]}  Be7 {[%clk 0:02:47]} 12. Ne2 {[%clk 0:03:01]}  f5 {[%clk 0:02:46]} 13. g3 {[%clk 0:03:02]}  Bxh4 {[%clk 0:02:45]} 14. gxh4 {[%clk 0:03:03]}  Nf6 {[%clk 0:02:44]} 15. Nf4 {[%clk 0:03:03]}  Nh5 {[%clk 0:02:44]} 16. Nd3 {[%clk 0:02:54]}  f4 {[%clk 0:02:26]} 17. Nxf4 {[%clk 0:02:50]}  Nxf4 {[%clk 0:02:26]} 18. exf4 {[%clk 0:02:51]}  Ke7 {[%clk 0:02:25]} 19. Kd2 {[%clk 0:02:50]}  Rae8 {[%clk 0:02:20]} 20. Rg1 {[%clk 0:02:43]}  Bf5 {[%clk 0:02:18]} 21. Re1+ {[%clk 0:02:40]}  Kf6 {[%clk 0:02:02]} 22. Re5 {[%clk 0:02:25]}  h6 {[%clk 0:02:01]} 23. Be2 {[%clk 0:02:13]}  Reg8 {[%clk 0:01:57]} 24. Rg3 {[%clk 0:02:12]}  Ra8 {[%clk 0:01:35]} 25. Rb3 {[%clk 0:02:04]}  Rab8 {[%clk 0:01:29]} 26. Ra3 {[%clk 0:01:52]}  Ra8 {[%clk 0:01:28]} 27. Rc3 {[%clk 0:01:52]}  Rhg8 {[%clk 0:01:23]} 28. Rg3 {[%clk 0:01:40]}  Rgb8 {[%clk 0:01:22]} 29. Bh5 {[%clk 0:01:35]}  Rf8 {[%clk 0:01:20]} 30. Rge3 {[%clk 0:01:30]}  Rad8 {[%clk 0:01:09]} 31. b4 {[%clk 0:01:24]}  Rd7 {[%clk 0:01:06]} 32. a4 {[%clk 0:01:23]}  a6 {[%clk 0:01:04]} 33. Rg3 {[%clk 0:01:21]}  Rdd8 {[%clk 0:01:03]} 34. Rge3 {[%clk 0:01:10]}  Rd7 {[%clk 0:00:59]} 35. h3 {[%clk 0:01:04]}  Rc7 {[%clk 0:00:58]} 36. Bg4 {[%clk 0:01:01]}  Be4 {[%clk 0:00:54]} 37. f3 {[%clk 0:00:55]}  Bb1 {[%clk 0:00:52]} 38. h5 {[%clk 0:00:52]}  b6 {[%clk 0:00:42]} 39. Rc3 {[%clk 0:00:50]}  Rd8 {[%clk 0:00:35]} 40. Rc1 {[%clk 0:00:47]}  Ba2 {[%clk 0:00:27]} 41. Rg1 {[%clk 0:00:39]}  c5 {[%clk 0:00:23]} 42. dxc5 {[%clk 0:00:16]}  bxc5 {[%clk 0:00:23]} 43. bxc5 {[%clk 0:00:17]}  Rxc5 {[%clk 0:00:22]} 44. Rge1 {[%clk 0:00:17]}  Rc7 {[%clk 0:00:20]} 45. Bf5 {[%clk 0:00:15]}  Bc4 {[%clk 0:00:20]} 46. Bc2 {[%clk 0:00:15]}  Kg7 {[%clk 0:00:17]} 47. Rf5 {[%clk 0:00:14]}  Rd6 {[%clk 0:00:16]} 48. Rg1+ {[%clk 0:00:12]}  Kf8 {[%clk 0:00:16]} 49. Rg6 {[%clk 0:00:11]}  Rxg6 {[%clk 0:00:15]} 50. hxg6 {[%clk 0:00:11]}  Kg7 {[%clk 0:00:15]} 51. gxf7 {[%clk 0:00:05]}  Rxf7 {[%clk 0:00:16]} 52. Ke3 {[%clk 0:00:05]}  a5 {[%clk 0:00:14]} 53. Rxf7+ {[%clk 0:00:05]}  Kxf7 {[%clk 0:00:14]} 54. Kd4 {[%clk 0:00:06]}  Ke6 {[%clk 0:00:12]} 55. Bh7 {[%clk 0:00:05]}  Kd6 {[%clk 0:00:11]} 56. Bd3 {[%clk 0:00:04]}  Bb3 {[%clk 0:00:11]} 57. Bb5 {[%clk 0:00:04]}  Bd1 {[%clk 0:00:10]} 58. f5 {[%clk 0:00:04]}  Bxf3 {[%clk 0:00:09]} 59. h4 {[%clk 0:00:04]}  Be4 {[%clk 0:00:09]} 60. f6 {[%clk 0:00:05]}  Ke6 {[%clk 0:00:09]} 61. Bc6 {[%clk 0:00:02]}  Kxf6 {[%clk 0:00:09]} 62. Bxd5 {[%clk 0:00:03]}  Bc2 {[%clk 0:00:09]} 63. Bc6 {[%clk 0:00:03]}  Bxa4 {[%clk 0:00:08]} 64. Bxa4 {[%clk 0:00:03]}  h5 {[%clk 0:00:08]} 65. Bd1 {[%clk 0:00:03]}  a4 {[%clk 0:00:08]} 66. Bxa4 {[%clk 0:00:02]}  Kg7 {[%clk 0:00:08]} 67. Bd1 {[%clk 0:00:03]}  Kh8 {[%clk 0:00:08]} 68. Ke5 {[%clk 0:00:04]}  Kg8 {[%clk 0:00:09]} 1/2-1/2


[Site "https://www.chess.com"]

[Event "Titled Tuesday Blitz November 16 2021"]
[White "Zierk, Steven"]
[Black "Matinian, Nikita"]
[WhiteFideId "2034255"]
[BlackFideId "24129100"]
[WhiteElo "2494"]
[BlackElo "2422"]
[Result "1-0"]
[Round "11"]
[TimeControl "180+1"]
[Date "2021.11.16"]
[WhiteClock "0:00:34"]
[BlackClock "0:00:13"]

1. b3 {[%clk 0:03:00]}  e5 {[%clk 0:02:59]} 2. Bb2 {[%clk 0:03:01]}  Nc6 {[%clk 0:02:59]} 3. c4 {[%clk 0:03:01]}  g6 {[%clk 0:02:59]} 4. g3 {[%clk 0:02:45]}  Bg7 {[%clk 0:02:59]} 5. Bg2 {[%clk 0:02:45]}  h5 {[%clk 0:02:52]} 6. Nf3 {[%clk 0:02:44]}  h4 {[%clk 0:02:50]} 7. Nxh4 {[%clk 0:02:44]}  Rxh4 {[%clk 0:02:50]} 8. gxh4 {[%clk 0:02:44]}  Qxh4 {[%clk 0:02:50]} 9. e3 {[%clk 0:02:39]}  d6 {[%clk 0:02:48]} 10. Qf3 {[%clk 0:02:32]}  Nf6 {[%clk 0:02:44]} 11. Nc3 {[%clk 0:02:23]}  Nb4 {[%clk 0:02:35]} 12. O-O {[%clk 0:02:13]}  Nd3 {[%clk 0:02:35]} 13. Ba3 {[%clk 0:02:10]}  a6 {[%clk 0:02:10]} 14. Nd5 {[%clk 0:02:01]}  Nxd5 {[%clk 0:02:03]} 15. Qxd5 {[%clk 0:02:00]}  e4 {[%clk 0:01:43]} 16. Qxe4+ {[%clk 0:01:56]}  Qxe4 {[%clk 0:01:43]} 17. Bxe4 {[%clk 0:01:57]}  Bxa1 {[%clk 0:01:43]} 18. Rxa1 {[%clk 0:01:55]}  Nc5 {[%clk 0:01:40]} 19. Bg2 {[%clk 0:01:52]}  a5 {[%clk 0:01:32]} 20. d4 {[%clk 0:01:48]}  Na6 {[%clk 0:01:32]} 21. Bb2 {[%clk 0:01:45]}  c6 {[%clk 0:01:27]} 22. Bc3 {[%clk 0:01:39]}  a4 {[%clk 0:01:18]} 23. b4 {[%clk 0:01:38]}  a3 {[%clk 0:01:12]} 24. Rb1 {[%clk 0:01:33]}  Nc7 {[%clk 0:01:10]} 25. b5 {[%clk 0:01:24]}  d5 {[%clk 0:01:00]} 26. b6 {[%clk 0:01:17]}  Ne6 {[%clk 0:00:44]} 27. cxd5 {[%clk 0:01:17]}  cxd5 {[%clk 0:00:45]} 28. Bxd5 {[%clk 0:01:17]}  Ng5 {[%clk 0:00:43]} 29. Bb4 {[%clk 0:01:04]}  Nh7 {[%clk 0:00:21]} 30. Rc1 {[%clk 0:00:58]}  Nf6 {[%clk 0:00:21]} 31. Bf3 {[%clk 0:00:50]}  Be6 {[%clk 0:00:17]} 32. Bxb7 {[%clk 0:00:48]}  Rb8 {[%clk 0:00:17]} 33. Bc6+ {[%clk 0:00:48]}  Kd8 {[%clk 0:00:17]} 34. b7 {[%clk 0:00:45]}  Bxa2 {[%clk 0:00:18]} 35. Bd6 {[%clk 0:00:41]}  Bb1 {[%clk 0:00:13]} 36. Rxb1 {[%clk 0:00:34]} 1-0


[Site "https://www.chess.com"]

[Event "Titled Tuesday Blitz November 16 2021"]
[White "vizumatv4hoda"]
[Black "Bologan, Victor"]
[BlackFideId "13900048"]
[WhiteElo "2772"]
[BlackElo "2472"]
[Result "0-1"]
[Round "11"]
[TimeControl "180+1"]
[Date "2021.11.16"]
[WhiteClock "0:00:02"]
[BlackClock "0:00:14"]

1. e4 {[%clk 0:03:00]}  e5 {[%clk 0:02:59]} 2. d4 {[%clk 0:03:01]}  exd4 {[%clk 0:02:58]} 3. Nf3 {[%clk 0:03:01]}  Nc6 {[%clk 0:02:57]} 4. c3 {[%clk 0:03:02]}  d3 {[%clk 0:02:46]} 5. Bxd3 {[%clk 0:03:02]}  d6 {[%clk 0:02:45]} 6. Nd4 {[%clk 0:03:03]}  g6 {[%clk 0:02:39]} 7. O-O {[%clk 0:03:02]}  Bg7 {[%clk 0:02:39]} 8. Be3 {[%clk 0:03:03]}  Nge7 {[%clk 0:02:38]} 9. Kh1 {[%clk 0:03:03]}  O-O {[%clk 0:02:38]} 10. f4 {[%clk 0:03:03]}  f5 {[%clk 0:02:34]} 11. Nd2 {[%clk 0:03:00]}  Kh8 {[%clk 0:02:21]} 12. exf5 {[%clk 0:02:57]}  Nxf5 {[%clk 0:02:06]} 13. Nxf5 {[%clk 0:02:51]}  Bxf5 {[%clk 0:02:01]} 14. Nf3 {[%clk 0:02:51]}  Qd7 {[%clk 0:01:56]} 15. Ng5 {[%clk 0:02:43]}  Rae8 {[%clk 0:01:52]} 16. Qd2 {[%clk 0:02:35]}  Re7 {[%clk 0:01:44]} 17. Rae1 {[%clk 0:02:32]}  Rfe8 {[%clk 0:01:43]} 18. b4 {[%clk 0:02:25]}  Bxd3 {[%clk 0:01:34]} 19. Qxd3 {[%clk 0:02:26]}  Qf5 {[%clk 0:01:34]} 20. Qxf5 {[%clk 0:02:18]}  gxf5 {[%clk 0:01:33]} 21. Bd2 {[%clk 0:02:19]}  d5 {[%clk 0:01:10]} 22. Nf3 {[%clk 0:02:12]}  Bf6 {[%clk 0:01:06]} 23. Kg1 {[%clk 0:02:04]}  Re4 {[%clk 0:01:06]} 24. Ng5 {[%clk 0:01:51]}  Re2 {[%clk 0:01:00]} 25. Nf3 {[%clk 0:01:30]}  Kg7 {[%clk 0:00:52]} 26. Rxe2 {[%clk 0:01:23]}  Rxe2 {[%clk 0:00:52]} 27. Re1 {[%clk 0:01:24]}  Re4 {[%clk 0:00:51]} 28. Kf2 {[%clk 0:01:17]}  a5 {[%clk 0:00:51]} 29. a3 {[%clk 0:01:09]}  a4 {[%clk 0:00:51]} 30. Re3 {[%clk 0:01:07]}  Na7 {[%clk 0:00:46]} 31. Ng5 {[%clk 0:00:52]}  Bxg5 {[%clk 0:00:44]} 32. fxg5 {[%clk 0:00:41]}  Nb5 {[%clk 0:00:39]} 33. Bc1 {[%clk 0:00:30]}  Kg6 {[%clk 0:00:26]} 34. Rxe4 {[%clk 0:00:19]}  fxe4 {[%clk 0:00:24]} 35. Bb2 {[%clk 0:00:16]}  Kxg5 {[%clk 0:00:19]} 36. Ke3 {[%clk 0:00:17]}  Kf5 {[%clk 0:00:19]} 37. h3 {[%clk 0:00:17]}  h5 {[%clk 0:00:18]} 38. g3 {[%clk 0:00:12]}  Nd6 {[%clk 0:00:17]} 39. Bc1 {[%clk 0:00:11]}  b6 {[%clk 0:00:16]} 40. Kd4 {[%clk 0:00:11]}  Ke6 {[%clk 0:00:16]} 41. g4 {[%clk 0:00:11]}  hxg4 {[%clk 0:00:16]} 42. hxg4 {[%clk 0:00:12]}  Nb5+ {[%clk 0:00:17]} 43. Ke3 {[%clk 0:00:10]}  Nxc3 {[%clk 0:00:16]} 44. g5 {[%clk 0:00:08]}  Kf5 {[%clk 0:00:16]} 45. b5 {[%clk 0:00:03]}  Nxb5 {[%clk 0:00:15]} 46. g6 {[%clk 0:00:01]}  Kxg6 {[%clk 0:00:14]} 47. Kf4 {[%clk 0:00:02]}  Kf6 {[%clk 0:00:14]} 0-1